fUSD/lending_fUSD_20250616
["ID","MTS","AMOUNT","RATE_DAILY","PERIOD"]
[366167717,1750097446648,-490.0,0.00015723,2]
[366167718,1750097446660,-490.0,0.00015723,2]
[366167719,1750097446672,-490.0,0.00015723,2]
[366167720,1750097446685,-490.0,0.00015723,2]
[366167721,1750097446696,-733.09,0.00015723,2]
[366167722,1750097446709,-457.1824861,0.00015723,2]
[366167723,1750097446721,-490.0,0.00015723,2]
[366167724,1750097446733,-490.0,0.00015723,2]
[366167725,1750097446745,-490.0,0.00015723,2]
[366167726,1750097446758,-490.0,0.00015723,2]
[366167727,1750097446771,-490.0,0.00015723,2]
[366167728,1750097446784,-490.0,0.00015723,2]
[366167729,1750097446796,-490.0,0.00015723,2]
[366167730,1750097446809,-490.0,0.00015723,2]
[366167731,1750097446821,-490.0,0.00015723,2]
[366167732,1750097446834,-490.0,0.00015723,2]
[366167733,1750097446847,-490.0,0.00015723,2]
[366167734,1750097446859,-490.0,0.00015723,2]
[366167735,1750097446871,-490.0,0.00015723,2]
[366167736,1750097446883,-583.56,0.00015723,2]
[366167737,1750097446895,-490.0,0.00015723,2]
[366167738,1750097446907,-907.12,0.00015723,2]
[366167739,1750097446919,-490.0,0.00015723,2]
[366167740,1750097446931,-490.0,0.00015723,2]
[366167741,1750097446943,-490.0,0.00015723,2]
[366167742,1750097446955,-494.22,0.00015723,2]
[366167743,1750097446968,-490.0,0.00015723,2]
[366167744,1750097446979,-490.0,0.00015723,2]
[366167745,1750097446992,-736.9,0.00015723,2]
[366167746,1750097447003,-500.0,0.00015723,2]
[366167747,1750097447015,-490.0,0.00015723,2]
[366167748,1750097447028,-490.0,0.00015723,2]
[366167749,1750097447040,-490.0,0.00015723,2]
[366167750,1750097447053,-490.0,0.00015723,2]
[366167751,1750097447064,-490.0,0.00015723,2]
[366167752,1750097447076,-373.79987245,0.00015723,2]
[366167753,1750097447088,-1170.23,0.00015723,2]
[366167754,1750097447100,-490.0,0.00015723,2]
[366167755,1750097447112,-490.0,0.00015723,2]
[366167756,1750097447123,-596.88063319,0.00015723,2]
[366167757,1750097447136,-490.0,0.00015723,2]
[366167758,1750097447147,-490.0,0.00015723,2]
[366167759,1750097447159,-490.0,0.00015723,2]
[366167760,1750097447172,-595.21713206,0.00015723,2]
[366167761,1750097447184,-658.16,0.00015723,2]
[366167762,1750097447196,-713.7,0.00015723,2]
[366167763,1750097447207,-775.4,0.00015723,2]
[366167764,1750097447219,-490.0,0.00015723,2]
[366167765,1750097447231,-490.0,0.00015723,2]
[366167766,1750097447244,-480.0,0.00015723,2]
[366167767,1750097447255,-490.0,0.00015723,2]
[366167768,1750097447267,-490.0,0.00015723,2]
[366167769,1750097447279,-490.0,0.00015723,2]
[366167770,1750097447291,-500.0,0.00015723,2]
[366167771,1750097447303,-490.0,0.00015723,2]
[366167772,1750097447315,-490.0,0.00015723,2]
[366167773,1750097447327,-490.0,0.00015723,2]
[366167774,1750097447340,-490.0,0.00015723,2]
[366167775,1750097447351,-650.98,0.00015723,2]
[366167776,1750097447363,-490.0,0.00015723,2]
[366167777,1750097447375,-490.0,0.00015723,2]
[366167778,1750097447387,-490.0,0.00015723,2]
[366167779,1750097447399,-490.0,0.00015723,2]
[366167780,1750097447411,-727.19,0.00015723,2]
[366167781,1750097447423,-490.0,0.00015723,2]
[366167782,1750097447436,-490.0,0.00015723,2]
[366167783,1750097447448,-490.0,0.00015723,2]
[366167784,1750097447460,-895.18,0.00015723,2]
[366167785,1750097447472,-671.04,0.00015723,2]
[366167786,1750097447484,-586.4631193,0.00015723,2]
[366167787,1750097447496,-509.39,0.00015723,2]
[366167788,1750097447508,-490.0,0.00015723,2]
[366167789,1750097447520,-490.0,0.00015723,2]
[366167790,1750097447535,-490.0,0.00015723,2]
[366167791,1750097447547,-720.72,0.00015723,2]
[366167792,1750097447559,-490.0,0.00015723,2]
[366167793,1750097447570,-490.0,0.00015723,2]
[366167794,1750097447583,-757.48,0.00015723,2]
[366167795,1750097447594,-490.0,0.00015723,2]
[366167796,1750097447607,-552.84160552,0.00015723,2]
[366167797,1750097447618,-490.0,0.00015723,2]
[366167798,1750097447631,-490.0,0.00015723,2]
[366167799,1750097447641,-490.0,0.00015723,2]
[366167800,1750097447653,-490.0,0.00015723,2]
[366167801,1750097447665,-1126.62,0.00015723,2]
[366167802,1750097447677,-490.0,0.00015723,2]
[366167803,1750097447688,-490.0,0.00015723,2]
[366167804,1750097447700,-648.98,0.00015723,2]
[366167805,1750097447712,-490.0,0.00015723,2]
[366167806,1750097447724,-490.0,0.00015723,2]
[366167807,1750097447736,-490.0,0.00015723,2]
[366167808,1750097447748,-490.0,0.00015723,2]
[366167809,1750097447760,-491.26307029,0.00015723,2]
[366167810,1750097447772,-490.0,0.00015723,2]
[366167811,1750097447784,-472.26315404,0.00015723,2]
[366167812,1750097447796,-490.0,0.00015723,2]
[366167813,1750097447808,-491.47103858,0.00015723,2]
[366167814,1750097447820,-490.0,0.00015723,2]
[366167815,1750097447831,-490.0,0.00015723,2]
[366167816,1750097447843,-490.0,0.00015723,2]
[366167817,1750097447856,-490.0,0.00015723,2]
[366167818,1750097447867,-490.0,0.00015723,2]
[366167819,1750097447880,-490.0,0.00015723,2]
[366167820,1750097447892,-524.26,0.00015723,2]
[366167821,1750097447903,-490.0,0.00015723,2]
[366167822,1750097447916,-490.0,0.00015723,2]
[366167823,1750097447927,-824.61,0.00015723,2]
[366167824,1750097447939,-490.0,0.00015723,2]
[366167825,1750097447950,-490.0,0.00015723,2]
[366167826,1750097447961,-490.0,0.00015723,2]
[366167827,1750097447972,-490.0,0.00015723,2]
[366167828,1750097447984,-490.0,0.00015723,2]
[366167829,1750097447995,-617.31,0.00015723,2]
[366167830,1750097448007,-414.52636198,0.00015723,2]
[366167831,1750097448019,-649.84,0.00015723,2]
[366167832,1750097448031,-490.0,0.00015723,2]
[366167833,1750097448043,-490.0,0.00015723,2]
[366167834,1750097448055,-1014.9,0.00015723,2]
[366167835,1750097448066,-490.0,0.00015723,2]
[366167836,1750097448078,-490.0,0.00015723,2]
[366167837,1750097448090,-490.0,0.00015723,2]
[366167838,1750097448101,-490.0,0.00015723,2]
[366167839,1750097448113,-1044.12,0.00015723,2]
[366167840,1750097448124,-490.0,0.00015723,2]
[366167841,1750097448136,-490.0,0.00015723,2]
[366167842,1750097448148,-490.0,0.00015723,2]
[366167843,1750097448161,-490.0,0.00015723,2]
[366167844,1750097448173,-490.0,0.00015723,2]
[366167845,1750097448184,-490.0,0.00015723,2]
[366167846,1750097448196,-490.0,0.00015723,2]
[366167847,1750097448208,-490.0,0.00015723,2]
[366167848,1750097448220,-490.0,0.00015723,2]
[366167849,1750097448231,-1807.42,0.00015723,2]
[366167850,1750097448243,-490.0,0.00015723,2]
[366167851,1750097448255,-490.0,0.00015723,2]
[366167852,1750097448267,-490.0,0.00015723,2]
[366167853,1750097448278,-490.0,0.00015723,2]
[366167854,1750097448290,-1158.78,0.00015723,2]
[366167855,1750097448510,-490.0,0.00015723,2]
[366167856,1750097448523,-490.0,0.00015723,2]
[366167857,1750097448540,-490.0,0.00015723,2]
[366167858,1750097448552,-490.0,0.00015723,2]
[366167859,1750097448564,-784.75,0.00015723,2]
[366167860,1750097448577,-490.05,0.00015723,2]
[366167861,1750097448589,-490.0,0.00015723,2]
[366167862,1750097448600,-490.0,0.00015723,2]
[366167863,1750097448615,-1985.02,0.00015723,2]
[366167864,1750097448627,-490.0,0.00015723,2]
[366167865,1750097448638,-490.0,0.00015723,2]
[366167866,1750097448650,-490.0,0.00015723,2]
[366167867,1750097448661,-490.0,0.00015723,2]
[366167868,1750097448673,-962.1,0.00015723,2]
[366167869,1750097448684,-944.05,0.00015723,2]
[366167870,1750097448696,-490.0,0.00015723,2]
[366167871,1750097448707,-490.0,0.00015723,2]
[366167872,1750097448719,-1472.76,0.00015723,2]
[366167873,1750097448732,-490.0,0.00015723,2]
[366167874,1750097448745,-490.0,0.00015723,2]
[366167875,1750097448757,-490.0,0.00015723,2]
[366167876,1750097449341,-490.0,0.00015723,2]
[366167877,1750097449519,-570.62,0.00015723,2]
[366167878,1750097449548,-1022.84,0.00015723,2]
[366167879,1750097449575,-490.0,0.00015723,2]
[366167880,1750097449585,-490.0,0.00015723,2]
[366167881,1750097449595,-1527.24,0.00015723,2]
[366167882,1750097449605,-490.0,0.00015723,2]
[366167883,1750097449615,-1465.16,0.00015723,2]
[366167884,1750097449625,-490.0,0.00015723,2]
[366167885,1750097449634,-490.0,0.00015723,2]
[366167886,1750097449644,-490.0,0.00015723,2]
[366167887,1750097449653,-490.0,0.00015723,2]
[366167888,1750097449664,-490.0,0.00015723,2]
[366167889,1750097449674,-490.0,0.00015723,2]
[366167890,1750097449683,-490.0,0.00015723,2]
[366167891,1750097449693,-957.75,0.00015723,2]
[366167892,1750097449703,-490.0,0.00015723,2]
[366167893,1750097449715,-490.0,0.00015723,2]
[366167894,1750097449724,-500.0,0.00015723,2]
[366167895,1750097449734,-490.0,0.00015723,2]
[366167896,1750097449744,-556.13,0.00015723,2]
[366167897,1750097449754,-1212.82,0.00015723,2]
[366167898,1750097449764,-1523.66,0.00015723,2]
[366167899,1750097449774,-490.0,0.00015723,2]
[366167900,1750097449784,-1416.89,0.00015723,2]
[366167901,1750097449795,-1547.23,0.00015723,2]
[366167902,1750097449804,-490.0,0.00015723,2]
[366167903,1750097449814,-490.0,0.00015723,2]
[366167904,1750097449823,-501.08,0.00015723,2]
[366167905,1750097449832,-1464.74,0.00015723,2]
[366167906,1750097449843,-490.0,0.00015723,2]
[366167907,1750097449853,-924.02,0.00015723,2]
[366167908,1750097449862,-764.62,0.00015723,2]
[366167909,1750097449872,-790.02,0.00015723,2]
[366167910,1750097449881,-490.95324714,0.00015723,2]
[366167911,1750097449892,-490.0,0.00015723,2]
[366167912,1750097449902,-490.0,0.00015723,2]
[366167913,1750097449911,-490.0,0.00015723,2]
[366167914,1750097449922,-490.0,0.00015723,2]
[366167915,1750097449931,-490.0,0.00015723,2]
[366167916,1750097449941,-490.0,0.00015723,2]
[366167917,1750097449951,-490.0,0.00015723,2]
[366167918,1750097449960,-490.0,0.00015723,2]
[366167919,1750097449970,-490.0,0.00015723,2]
[366167920,1750097449980,-490.0,0.00015723,2]
[366167921,1750097449990,-490.0,0.00015723,2]
[366167922,1750097450001,-529.91,0.00015723,2]
[366167923,1750097450013,-853.81,0.00015723,2]
[366167924,1750097450023,-490.0,0.00015723,2]
[366167925,1750097450034,-490.0,0.00015723,2]
[366167926,1750097450044,-1168.91,0.00015723,2]
[366167927,1750097450055,-1067.25,0.00015723,2]
[366167928,1750097450064,-2186.48,0.00015723,2]
[366167929,1750097450074,-490.0,0.00015723,2]
[366167930,1750097450084,-1153.6,0.00015723,2]
[366167931,1750097450094,-860.46,0.00015723,2]
[366167932,1750097450104,-490.0,0.00015723,2]
[366167933,1750097450113,-1749.97,0.00015723,2]
[366167934,1750097450123,-850.36,0.00015723,2]
[366167935,1750097450132,-900.45,0.00015723,2]
[366167936,1750097450142,-1038.07,0.00015723,2]
[366167937,1750097450153,-490.0,0.00015723,2]
[366167938,1750097450163,-2645.85,0.00015723,2]
[366167939,1750097450172,-490.0,0.00015723,2]
[366167940,1750097450182,-490.0,0.00015723,2]
[366167941,1750097450191,-490.0,0.00015723,2]
[366167942,1750097450201,-981.06,0.00015723,2]
[366167943,1750097450211,-654.46,0.00015723,2]
[366167944,1750097450221,-1120.23,0.00015723,2]
[366167945,1750097450231,-824.25,0.00015723,2]
[366167946,1750097450240,-743.93,0.00015723,2]
[366167947,1750097450250,-1232.36,0.00015723,2]
[366167948,1750097450260,-920.01,0.00015723,2]
[366167949,1750097450270,-816.92,0.00015723,2]
[366167950,1750097450280,-490.0,0.00015723,2]
[366167951,1750097450290,-490.0,0.00015723,2]
[366167952,1750097450300,-1520.64,0.00015723,2]
[366167953,1750097450310,-836.03,0.00015723,2]
[366167954,1750097450319,-1416.35,0.00015723,2]
[366167955,1750097450330,-490.0,0.00015723,2]
[366167956,1750097450339,-490.0,0.00015723,2]
[366167957,1750097450350,-490.0,0.00015723,2]
[366167958,1750097450360,-490.0,0.00015723,2]
[366167959,1750097450369,-4580.68289793,0.0001573,2]
[366167960,1750097450379,-2030.296672,0.00015742,2]
[366167961,1750097450388,-4580.68289793,0.00015758,2]
[366167962,1750097450398,-331.99689195,0.00015764,2]
[366167963,1750097450407,-163.19697231,0.00015768,2]
[366167964,1750097450417,-151.0,0.00015769,2]
[366167965,1750097450427,-4580.68289793,0.00015785,2]
[366167966,1750097450436,-153.84221188,0.00015787,2]
[366167967,1750097450446,-6865.54054369,0.00015787,2]
[366167968,1750097450455,-301.69413546,0.00015787,2]
[366167969,1750097450465,-181.17178661,0.00015787,2]
[366167970,1750097450474,-500.0,0.00015788,2]
[366167971,1750097450483,-500.0,0.00015788,2]
[366167972,1750097450493,-504.32197462,0.00015788,2]
[366167973,1750097450503,-24995.29358317,0.00015789,2]
[366167974,1750097450512,-1316853.67433451,0.00015789,2]
[366167975,1750097450522,-500.0,0.00015789,2]
[366167976,1750097450536,-36120.8264,0.00015789,2]
[366167977,1750097450546,-1000.0,0.00015789,2]
[366167978,1750097450555,-2105.41764886,0.00015797,2]
[366167979,1750097450566,-1000.0,0.000158,2]
[366167980,1750097450577,-2361.38,0.000158,2]
[366167981,1750097450587,-385.24,0.000158,2]
[366167982,1750097450596,-302.82,0.000158,2]
[366167983,1750097450606,-709.4,0.000158,2]
[366167984,1750097450616,-905.61353909,0.00015801,2]
[366167985,1750097450626,-490.0,0.00015802,2]
[366167986,1750097450635,-490.0,0.00015802,2]
[366167987,1750097450644,-462.52323392,0.00015802,2]
[366167988,1750097450653,-490.0,0.00015802,2]
[366167989,1750097450663,-490.0,0.00015802,2]
[366167990,1750097450672,-490.0,0.00015802,2]
[366167991,1750097450683,-377.14236445,0.00015802,2]
[366167992,1750097450692,-490.0,0.00015802,2]
[366167993,1750097450702,-500.0,0.00015802,2]
[366167994,1750097450711,-1442.42,0.00015802,2]
[366167995,1750097450721,-908.67,0.00015802,2]
[366167996,1750097450730,-653.23,0.00015802,2]
[366167997,1750097450740,-2511.15,0.00015802,2]
[366167998,1750097450750,-4466.3,0.00015802,2]
[366167999,1750097450759,-490.0,0.00015802,2]
[366168000,1750097450769,-498.67,0.00015802,2]
[366168001,1750097450779,-3739.89,0.00015802,2]
[366168002,1750097450789,-490.0,0.00015802,2]
[366168003,1750097450798,-490.0,0.00015802,2]
[366168004,1750097450808,-9721.67,0.00015802,2]
[366168005,1750097450817,-6752.98,0.00015802,2]
[366168006,1750097450828,-2555.29,0.00015802,2]
[366168007,1750097450837,-5332.73,0.00015802,2]
[366168008,1750097450847,-1095.3,0.00015802,2]
[366168009,1750097450856,-1407.16,0.00015802,2]
[366168010,1750097450866,-1398.51,0.00015802,2]
[366168011,1750097450875,-1100.78,0.00015802,2]
[366168012,1750097450885,-1511.21,0.00015802,2]
[366168013,1750097450894,-866.1,0.00015802,2]
[366168014,1750097450903,-4716.19,0.00015802,2]
[366168015,1750097450913,-13968.45,0.00015802,2]
[366168016,1750097450923,-1441.28,0.00015802,2]
[366168017,1750097450932,-1424.41,0.00015802,2]
[366168018,1750097450942,-500.0,0.00015802,2]
[366168019,1750097450952,-795.77,0.00015802,2]
[366168020,1750097450961,-2241.26,0.00015802,2]
[366168021,1750097450971,-1210.59,0.00015802,2]
[366168022,1750097450981,-647.97,0.00015802,2]
[366168023,1750097450990,-862.72,0.00015802,2]
[366168024,1750097451000,-775.78,0.00015802,2]
[366168025,1750097451010,-11675.58,0.00015802,2]
[366168026,1750097451019,-490.0,0.00015802,2]
[366168027,1750097451030,-2327.4,0.00015802,2]
[366168028,1750097451039,-1268.57,0.00015802,2]
[366168029,1750097451049,-210.00689634,0.00015803,2]
[366168030,1750097451059,-474.4062018,0.00015803,2]
[366168031,1750097451069,-504.79500773,0.00015803,2]
[366168032,1750097451079,-161.78353957,0.00015803,2]
[366168033,1750097451090,-491.26814246,0.00015803,2]
[366168034,1750097451099,-490.0,0.00015803,2]
[366168035,1750097451109,-490.69535708,0.00015803,2]
[366168036,1750097451118,-490.0,0.00015803,2]
[366168037,1750097451128,-490.0,0.00015803,2]
[366168038,1750097451137,-490.0,0.00015803,2]
[366168039,1750097451147,-262.8798,0.00015803,2]
[366168040,1750097451156,-490.0,0.00015803,2]
[366168041,1750097451165,-490.0,0.00015803,2]
[366168042,1750097451175,-490.0,0.00015803,2]
[366168043,1750097451184,-490.0,0.00015803,2]
[366168044,1750097451195,-490.0,0.00015803,2]
[366168045,1750097451204,-490.3903839,0.00015803,2]
[366168046,1750097451214,-490.0,0.00015803,2]
[366168047,1750097451223,-490.0,0.00015803,2]
[366168048,1750097451233,-490.0,0.00015803,2]
[366168049,1750097451243,-490.0,0.00015803,2]
[366168050,1750097451253,-490.0,0.00015803,2]
[366168051,1750097451262,-490.0,0.00015803,2]
[366168052,1750097451272,-490.0,0.00015803,2]
[366168053,1750097451281,-490.0,0.00015803,2]
[366168054,1750097451291,-490.0,0.00015803,2]
[366168055,1750097451300,-490.0,0.00015803,2]
[366168056,1750097451310,-1044.17,0.00015803,2]
[366168057,1750097451320,-967.07,0.00015803,2]
[366168058,1750097451330,-490.0,0.00015803,2]
[366168059,1750097451339,-490.0,0.00015803,2]
[366168060,1750097451349,-1242.8,0.00015803,2]
[366168061,1750097451360,-490.0,0.00015803,2]
[366168062,1750097451369,-490.0,0.00015803,2]
[366168063,1750097451379,-490.0,0.00015803,2]
[366168064,1750097451389,-1064.6,0.00015803,2]
[366168065,1750097451398,-818.38,0.00015803,2]
[366168066,1750097451408,-1034.52,0.00015803,2]
[366168067,1750097451418,-500.0,0.00015803,2]
[366168068,1750097451429,-1057.59,0.00015803,2]
[366168069,1750097451439,-490.0,0.00015803,2]
[366168070,1750097451448,-490.0,0.00015803,2]
[366168071,1750097451457,-490.0,0.00015803,2]
[366168072,1750097451467,-490.0,0.00015803,2]
[366168073,1750097451476,-4580.68289793,0.00015812,2]
[366168074,1750097451486,-777.0,0.00015834,2]
[366168075,1750097451495,-4580.68289793,0.00015839,2]
[366168076,1750097451506,-2183.31810187,0.00015852,2]
[366168077,1750097451515,-4580.68289793,0.00015866,2]
[366168078,1750097451526,-604.028725,0.00015867,2]
[366168079,1750097451540,-500.0,0.00015867,2]
[366168080,1750097451550,-151.0,0.00015867,2]
[366168081,1750097451560,-294.15796,0.00015867,2]
[366168082,1750097451569,-294.15796,0.00015867,2]
[366168083,1750097451581,-151.0,0.00015867,2]
[366168084,1750097451591,-151.0,0.00015867,2]
[366168085,1750097451600,-500.0,0.00015867,2]
[366168086,1750097451611,-500.0,0.00015867,2]
[366168087,1750097451620,-500.0,0.00015867,2]
[366168088,1750097451630,-500.0,0.00015867,2]
[366168089,1750097451639,-500.0,0.00015867,2]
[366168090,1750097451648,-500.0,0.00015867,2]
[366168091,1750097451658,-775.78,0.00015867,2]
[366168092,1750097451668,-775.78,0.00015867,2]
[366168093,1750097451678,-775.78,0.00015867,2]
[366168094,1750097451687,-775.78,0.00015867,2]
[366168095,1750097451697,-775.78,0.00015867,2]
[366168096,1750097451707,-775.78,0.00015867,2]
[366168097,1750097451717,-114424.0168,0.00015868,2]
[366168098,1750097451727,-151.0,0.00015868,2]
[366168099,1750097451736,-500.0,0.00015873,2]
[366168100,1750097451747,-163.75480245,0.00015873,2]
[366168101,1750097451757,-500.0,0.00015873,2]
[366168102,1750097451768,-522.81888161,0.00015873,2]
[366168103,1750097451778,-500.0,0.00015873,2]
[366168104,1750097451788,-500.0,0.00015873,2]
[366168105,1750097451797,-500.0,0.00015873,2]
[366168106,1750097451807,-157.60770053,0.00015873,2]
[366168107,1750097451817,-500.0,0.00015873,2]
[366168108,1750097451911,-187.4618364,0.00015873,2]
[366168109,1750097451921,-161.39950928,0.00015873,2]
[366168110,1750097451930,-500.0,0.00015873,2]
[366168111,1750097451939,-500.0,0.00015873,2]
[366168112,1750097451949,-641.53462198,0.00015873,2]
[366168113,1750097451958,-500.0,0.00015873,2]
[366168114,1750097451967,-359.12499857,0.00015873,2]
[366168115,1750097451977,-500.0,0.00015873,2]
[366168116,1750097451986,-500.0,0.00015873,2]
[366168117,1750097451996,-500.0,0.00015873,2]
[366168118,1750097452006,-500.0,0.00015873,2]
[366168119,1750097452015,-157.50233827,0.00015873,2]
[366168120,1750097452024,-500.0,0.00015873,2]
[366168121,1750097452034,-500.0,0.00015873,2]
[366168122,1750097452044,-500.0,0.00015873,2]
[366168123,1750097452053,-151.0,0.00015873,2]
[366168124,1750097452063,-293.278158,0.00015873,2]
[366168125,1750097452073,-293.278158,0.00015873,2]
[366168126,1750097452082,-151.0,0.00015873,2]
[366168127,1750097452091,-1524.43222602,0.00015878,2]
[366168128,1750097452101,-500.0,0.00015879,2]
[366168129,1750097452110,-151.0,0.00015879,2]
[366168130,1750097452120,-151.0,0.00015879,2]
[366168131,1750097452129,-151.0,0.00015879,2]
[366168132,1750097452139,-151.0,0.00015879,2]
[366168133,1750097452149,-151.0,0.00015879,2]
[366168134,1750097452159,-151.0,0.00015879,2]
[366168135,1750097452168,-594.21,0.00015886,2]
[366168136,1750097452177,-685.48,0.00015886,2]
[366168137,1750097452187,-911.86,0.00015886,2]
[366168138,1750097452196,-490.0,0.00015886,2]
[366168139,1750097452206,-554.31,0.00015886,2]
[366168140,1750097452215,-894.67,0.00015886,2]
[366168141,1750097452225,-500.0,0.00015886,2]
[366168142,1750097452234,-500.0,0.00015886,2]
[366168143,1750097452243,-284.16,0.00015886,2]
[366168144,1750097452253,-490.0,0.00015886,2]
[366168145,1750097452262,-710.37,0.00015886,2]
[366168146,1750097452271,-4120.71,0.00015886,2]
[366168147,1750097452281,-578.79,0.00015886,2]
[366168148,1750097452291,-562.72,0.00015886,2]
[366168149,1750097452300,-1354.53,0.00015886,2]
[366168150,1750097452310,-607.35,0.00015886,2]
[366168151,1750097452319,-2707.8,0.00015886,2]
[366168152,1750097452328,-490.0,0.00015886,2]
[366168153,1750097452337,-490.0,0.00015886,2]
[366168154,1750097452347,-775.78,0.00015886,2]
[366168155,1750097452356,-775.78,0.00015886,2]
[366168156,1750097452366,-775.78,0.00015886,2]
[366168157,1750097452375,-775.78,0.00015886,2]
[366168158,1750097452385,-775.78,0.00015886,2]
[366168159,1750097452395,-775.78,0.00015886,2]
[366168160,1750097452405,-775.78,0.00015886,2]
[366168161,1750097452414,-775.78,0.00015886,2]
[366168162,1750097452424,-490.0,0.00015886,2]
[366168163,1750097452433,-490.0,0.00015886,2]
[366168164,1750097452443,-829.3,0.00015886,2]
[366168165,1750097452452,-490.0,0.00015886,2]
[366168166,1750097452461,-2613.83,0.00015886,2]
[366168167,1750097452471,-507.51,0.00015886,2]
[366168168,1750097452481,-796.34,0.00015886,2]
[366168169,1750097452490,-824.05,0.00015886,2]
[366168170,1750097452500,-753.23,0.00015886,2]
[366168171,1750097452509,-490.0,0.00015886,2]
[366168172,1750097452518,-641.31,0.00015886,2]
[366168173,1750097452528,-490.0,0.00015886,2]
[366168174,1750097452541,-890.33,0.00015886,2]
[366168175,1750097452550,-710.77,0.00015886,2]
[366168176,1750097452559,-677.09,0.00015886,2]
[366168177,1750097452568,-1123.89794242,0.00015887,5]
[366168178,1750097452580,-797.95,0.00015887,2]
[366168179,1750097452589,-490.0,0.00015887,2]
[366168180,1750097452599,-490.0,0.00015887,2]
[366168181,1750097452610,-490.0,0.00015887,2]
[366168182,1750097452620,-490.0,0.00015887,2]
[366168183,1750097452629,-490.0,0.00015887,2]
[366168184,1750097452639,-490.0,0.00015887,2]
[366168185,1750097452648,-490.0,0.00015887,2]
[366168186,1750097452657,-490.0,0.00015887,2]
[366168187,1750097452667,-490.0,0.00015887,2]
[366168188,1750097452676,-490.0,0.00015887,2]
[366168189,1750097452687,-490.0,0.00015887,2]
[366168190,1750097452698,-490.0,0.00015887,2]
[366168191,1750097452707,-495.71,0.00015887,2]
[366168192,1750097452716,-490.0,0.00015887,2]
[366168193,1750097452725,-544.11,0.00015887,2]
[366168194,1750097452735,-250.0,0.00015887,2]
[366168195,1750097452744,-1905030.15460507,0.00015887,2]
[366168196,1750097452754,-503.7446977,0.00015887,2]
[366168197,1750097452763,-490.0,0.00015887,2]
[366168198,1750097452772,-490.0,0.00015887,2]
[366168199,1750097452782,-490.0,0.00015887,2]
[366168200,1750097452792,-490.0,0.00015887,2]
[366168201,1750097452801,-490.0,0.00015887,2]
[366168202,1750097452810,-490.0,0.00015887,2]
[366168203,1750097452820,-490.0,0.00015887,2]
[366168204,1750097452830,-718.04,0.00015887,2]
[366168205,1750097452839,-490.0,0.00015887,2]
[366168206,1750097452848,-490.0,0.00015887,2]
[366168207,1750097452858,-490.0,0.00015887,2]
[366168208,1750097452867,-814.42,0.00015887,2]
[366168209,1750097452877,-490.0,0.00015887,2]
[366168210,1750097452886,-490.0,0.00015887,2]
[366168211,1750097452896,-490.0,0.00015887,2]
[366168212,1750097452906,-490.0,0.00015887,2]
[366168213,1750097452916,-490.0,0.00015887,2]
[366168214,1750097452925,-490.0,0.00015887,2]
[366168215,1750097452935,-770.9,0.00015887,2]
[366168216,1750097452944,-490.0,0.00015887,2]